bitfinex-derivatives/quotes_ETHF0:USTF0_20251203
["timestamp","ask_amount","ask_price","bid_price","bid_amount"]
[1764776955881,7.2623,3090.6,3090.0,1.2871]
[1764776956585,7.26712615,3090.6,3090.0,1.29195288]
[1764776957091,3.21262615,3090.6,3090.0,3.25315288]
[1764776957283,3.21262615,3090.6,3090.0,0.00485288]
[1764776957284,3.2078,3090.1,3090.0,0.00485288]
[1764776957487,0.00482615,3090.6,3090.5,5.1376]
[1764776960082,7.26712615,3090.6,3090.0,1.13655288]
[1764776963982,7.26712615,3090.6,3090.5,1.9612]
[1764776964483,7.26712615,3090.6,3090.0,1.13655288]
[1764776964887,7.2623,3090.1,3090.0,3.09775288]
[1764776965085,7.2623,3090.1,3090.0,0.00485288]
[1764776967491,3.2078,3090.1,3090.0,5.14245288]
[1764776968494,7.2623,3090.1,3090.0,0.00485288]
[1764776969995,4.0545,3089.9,3089.0,4.3395]
[1764776970292,5.2169,3089.6,3089.5,3.0929]
[1764776970489,2.0091,3089.1,3089.0,3.0929]
[1764776970789,4.0545,3089.1,3088.6,3.2078]
[1764776970995,4.05753698,3089.1,3088.6,3.21140754]
[1764776971289,2.0091,3088.7,3088.6,1.96480754]
[1764776971596,4.0545,3088.7,3088.6,1.96480754]
[1764776971797,0.00485288,3089.0,3088.6,4.00950754]
[1764776973288,2.0091,3088.7,3088.6,4.00950754]
[1764776974198,3.8902,3088.7,3088.6,1.79010754]
[1764776974695,3.8902,3088.7,3088.6,0.00360754]
[1764776975090,3.8902,3088.7,3088.6,1.79010754]
[1764776975293,3.8902,3088.7,3088.6,0.00360754]
[1764776975600,3.7264,3088.6,3088.5,0.00485288]
[1764776976594,5.0531,3088.8,3088.7,1.7865]
[1764776976893,3.7264,3088.6,3088.5,2.88496329]
[1764776977093,3.7264,3088.6,3088.5,1.09846329]
[1764776977500,3.7264,3088.6,3088.5,2.88496329]
[1764776977798,3.7264,3088.6,3088.5,0.00776329]
[1764776979196,1.8453,3088.6,3088.5,2.87116329]
[1764776979501,3.2078,3088.8,3088.5,2.87116329]
[1764776979502,5.0095,3088.8,3088.7,3.6396]
[1764776980002,6.8474,3088.8,3088.7,1.8344]
[1764776981199,3.6396,3088.6,3088.5,0.00776329]
[1764776983300,3.2078,3088.8,3088.5,4.67636329]
[1764776983498,5.0095,3088.8,3088.7,1.8344]
[1764776983706,5.0095,3088.8,3088.7,3.6396]
[1764776983908,3.2078,3088.8,3088.7,3.6396]
[1764776984400,5.0095,3089.4,3089.3,3.6396]
[1764776985003,3.2078,3089.4,3089.3,3.6396]
[1764776985305,6.85121982,3089.4,3089.0,1.029]
[1764776985501,5.01331982,3089.4,3089.3,3.6396]
[1764776985705,6.85121982,3089.4,3089.3,1.8344]
[1764776985999,5.01331982,3089.4,3089.3,1.8344]
[1764776986206,3.21161982,3089.4,3089.3,3.6396]
[1764776987207,5.01331982,3089.4,3089.3,3.6396]
[1764776987601,1.8017,3089.1,3089.0,1.8344]
[1764776987803,3.21161982,3089.4,3089.0,4.6686]
[1764776989800,0.00381982,3089.4,3089.0,4.6686]
[1764776990213,3.64341982,3089.4,3089.3,3.6396]
[1764776990417,3.64341982,3089.4,3089.3,1.8344]
[1764776990806,3.64341982,3089.4,3089.0,1.029]
[1764776991000,1.8017,3089.1,3089.0,1.8344]
[1764776991206,1.8017,3089.1,3089.0,3.6396]
[1764776991406,3.6396,3089.1,3089.0,1.8344]
[1764776991612,3.6396,3089.1,3089.0,3.6396]
[1764776991916,3.6396,3089.1,3088.6,0.16183]
[1764776992114,3.6396,3089.0,3088.9,3.6396]
[1764776992308,1.8017,3089.0,3088.9,6.8474]
[1764776993216,1.8017,3089.1,3089.0,4.6686]
[1764776993420,0.00381982,3089.4,3089.3,3.6396]
[1764776994920,1.80551982,3089.4,3089.3,3.6396]
[1764776995220,1.8017,3089.1,3089.0,3.6396]
[1764776995421,3.6396,3089.1,3089.0,3.6396]
[1764776995624,1.8017,3089.1,3089.0,3.6396]
[1764776996225,3.6396,3089.1,3089.0,1.8344]
[1764776996523,3.6396,3089.1,3089.0,3.6396]
[1764776997419,3.6396,3089.1,3088.5,5.97389775]
[1764776997923,3.6396,3089.1,3089.0,1.8344]
[1764776998818,3.6396,3089.1,3089.0,3.6396]
[1764776999834,3.6396,3089.1,3088.6,1.72933446]
[1764777000029,3.6396,3088.6,3088.5,6.85516329]
[1764777000324,1.8017,3087.7,3087.6,3.6396]
[1764777000518,3.2078,3088.0,3087.9,3.6396]
[1764777000719,1.0765,3088.5,3088.0,1.029]
[1764777000720,4.2843,3088.5,3088.0,1.029]
[1764777001139,3.6396,3087.7,3087.6,3.2078]
[1764777001422,1.80655288,3088.0,3087.9,1.8344]
[1764777001630,1.80655288,3088.0,3087.6,3.21102957]
[1764777001631,3.64445288,3088.0,3087.6,3.21102957]
[1764777002118,1.8017,3087.7,3087.6,5.04542957]
[1764777002319,1.8017,3087.7,3087.6,6.85062957]
[1764777002526,3.6396,3087.4,3087.3,0.00485288]
[1764777002821,1.0765,3087.0,3086.3,6.8474]
[1764777003024,1.8017,3086.4,3086.3,5.0422]
[1764777003530,1.80457259,3086.4,3086.3,6.78804165]
[1764777003919,3.60337259,3086.4,3086.3,3.21164165]
[1764777004125,6.81117259,3086.4,3086.3,0.00384165]
[1764777004319,3.6357,3085.6,3085.5,3.2078]
[1764777004728,4.6768,3085.5,3085.0,15.8898]
[1764777004929,1.8369,3085.5,3085.4,3.5615]
[1764777005225,3.6357,3085.5,3085.4,3.2107189]
[1764777005431,4.683,3085.5,3085.4,0.0029189]
[1764777005826,3.6357,3085.2,3085.1,0.00486137]
[1764777006427,1.8369,3085.5,3085.4,1.8195]
[1764777006633,3.6357,3085.5,3085.1,0.00486137]
[1764777006827,4.683,3085.5,3085.4,0.00348301]
[1764777008331,3.6357,3085.5,3085.4,0.00348301]
[1764777008824,5.20385104,3085.8,3085.4,3.56498301]
[1764777009420,3.21266137,3085.8,3085.7,1.8195]
[1764777009618,4.683,3085.5,3085.4,0.00348301]
[1764777011328,3.6357,3085.5,3085.4,0.00348301]
[1764777012622,4.683,3085.5,3085.4,0.00348301]
[1764777014136,4.683,3085.0,3084.5,4.405]
[1764777014334,6.67418967,3085.0,3084.5,4.405]
[1764777015330,6.67418967,3085.0,3084.9,3.21171384]
[1764777015925,9.88198967,3085.0,3084.9,0.00391384]
[1764777016130,3.6357,3084.7,3084.6,0.00486137]
[1764777016330,12.24628967,3085.0,3082.1,2.32717301]
[1764777016331,1.8369,3084.2,3084.1,5.0273]
[1764777016529,3.6357,3084.2,3084.1,3.2078]
[1764777017032,3.6357,3084.2,3084.1,5.0273]
[1764777017333,0.0032741,3084.2,3084.1,6.77227014]
[1764777018333,3.2078,3085.4,3084.1,9.21077014]
[1764777018533,3.2078,3085.4,3084.7,3.2078]
[1764777018734,3.2078,3085.4,3085.3,1.8195]
[1764777018933,5.0447,3085.4,3085.3,1.8195]
[1764777019330,6.8435,3085.4,3084.7,3.2078]
[1764777019834,6.84667762,3085.4,3084.7,3.2078]
[1764777022134,3.6357,3084.8,3084.7,3.2078]
[1764777022438,3.21097762,3085.4,3084.7,6.7693]
[1764777022826,1.8369,3084.8,3084.7,6.7693]
[1764777023231,3.21097762,3085.4,3084.7,6.7693]
[1764777024338,3.6357,3084.8,3084.3,3.2078]
[1764777024635,1.8369,3084.8,3084.7,3.5615]
[1764777027931,3.6357,3084.8,3084.7,1.8195]
[1764777028136,1.8369,3084.8,3084.7,1.8195]
[1764777028534,3.6357,3083.9,3082.9,3.36993]
[1764777028842,5.19898967,3083.9,3083.0,3.5615]
[1764777029038,4.2551,3083.5,3083.0,3.5615]
[1764777029636,4.2551,3083.5,3083.0,3.56424354]
[1764777030032,3.6357,3083.1,3083.0,0.00274354]
[1764777030233,6.84715881,3083.1,3083.0,0.00274354]
[1764777031444,5.04835881,3083.1,3083.0,1.8195]
[1764777031635,3.21145881,3083.1,3083.0,4.592]
[1764777031841,0.00365881,3083.1,3083.0,4.592]
[1764777032246,0.00365881,3083.1,3083.0,3.5615]
[1764777032440,0.00365881,3083.1,3083.0,3.56458635]
[1764777032843,6.84715881,3083.1,3083.0,0.00308635]
[1764777033146,5.04835881,3083.1,3083.0,1.82258635]
[1764777033538,6.84715881,3083.1,3083.0,0.00308635]
[1764777034241,3.21145881,3083.1,3083.0,4.62828635]
[1764777035134,0.00365881,3083.1,3083.0,4.62828635]
[1764777035338,0.00486137,3083.6,3083.5,4.6252]
[1764777036341,0.00486137,3083.6,3083.5,3.5253]
[1764777036342,0.00829354,3083.6,3083.5,3.5253]
[1764777036747,0.00829354,3083.6,3083.5,4.6252]
[1764777037340,3.2078,3084.3,3084.2,3.5253]
[1764777037736,5.0205,3084.3,3084.2,3.5253]
[1764777038038,3.2078,3084.3,3084.2,3.5253]
[1764777038436,3.21083618,3084.3,3084.2,3.5253]
[1764777040049,6.81733618,3084.3,3083.8,0.16208]
[1764777040249,6.81733618,3084.3,3083.5,1.0999]
[1764777040448,3.60953618,3084.3,3083.5,1.0999]
[1764777041042,3.60953618,3084.3,3083.8,3.2078]
[1764777041450,1.7862,3083.9,3083.8,3.4927]
[1764777041744,3.2078,3084.1,3083.8,3.4927]
[1764777041948,0.00303618,3084.3,3084.0,1.7483]
[1764777042146,3.60953618,3084.3,3084.0,1.0545]
[1764777042355,3.60953618,3084.3,3083.5,1.0545]
[1764777042550,3.60953618,3084.3,3083.8,3.2078]
[1764777043346,3.60953618,3084.3,3083.5,1.0545]
[1764777044950,0.00303618,3084.3,3084.2,3.4927]
[1764777045656,1.78923618,3084.3,3084.2,3.4927]
[1764777045859,0.00303618,3084.3,3084.2,6.7005]
[1764777046059,0.00303618,3084.3,3084.2,3.4927]
[1764777049459,0.00486137,3084.6,3084.5,4.5472]
[1764777049760,3.2078,3085.3,3085.2,3.4927]
[1764777049957,3.2078,3085.7,3085.6,3.4927]
[1764777050153,6.8143,3085.7,3085.6,1.7444]
[1764777050358,6.8143,3085.7,3085.0,4.42432]
[1764777050359,1.7862,3085.1,3085.0,1.7444]
[1764777050667,1.7862,3085.1,3085.0,3.49640913]
[1764777050860,4.994,3085.3,3085.2,3.4927]
[1764777051064,3.2078,3085.3,3085.2,3.4927]
[1764777051563,3.6065,3085.1,3084.7,0.00486137]
[1764777051753,1.7862,3083.8,3083.7,3.2078]
[1764777051955,3.6065,3083.4,3083.0,1.0545]
[1764777052158,1.7862,3083.4,3082.9,7.0278]
[1764777052362,0.987,3084.0,3083.3,3.4927]
[1764777052562,3.2078,3083.9,3083.3,3.4927]
[1764777052756,3.2078,3083.9,3083.3,3.50089497]
[1764777052757,3.21266137,3083.9,3083.3,3.50089497]
[1764777053665,1.7862,3083.4,3083.3,1.75259497]
[1764777055168,3.6065,3083.4,3083.3,0.00819497]
[1764777056764,1.7862,3083.4,3083.3,1.75259497]
[1764777060067,3.21266137,3083.9,3083.3,3.50089497]
[1764777060468,3.6065,3083.4,3083.3,0.00819497]
[1764777060668,3.6065,3083.4,3082.4,4.93713446]
[1764777060871,3.2078,3083.5,3083.4,3.4927]
[1764777061069,6.8143,3083.5,3083.0,1.0545]
[1764777061277,7.8013,3083.5,3083.0,1.0545]
[1764777061576,6.8143,3083.5,3083.0,1.0545]
[1764777061870,6.8143,3083.5,3083.0,1.05845173]
[1764777062874,6.8143,3083.5,3083.0,1.74835173]
[1764777062875,1.7862,3083.1,3083.0,1.74835173]
[1764777063072,1.7862,3083.1,3083.0,0.00395173]
[1764777063073,6.8143,3083.1,3083.0,0.00395173]
[1764777064572,6.8143,3083.1,3083.0,1e-08]
[1764777065171,3.6065,3083.1,3083.0,1e-08]
[1764777065370,6.8143,3083.1,3083.0,1e-08]
[1764777071383,3.6065,3083.1,3083.0,1e-08]
[1764777071577,6.8143,3083.1,3083.0,1e-08]
[1764777080073,6.6152,3083.5,3083.4,3.3838]
[1764777080278,3.2078,3083.5,3083.4,3.3838]
[1764777080987,4.8521,3083.5,3083.4,3.3838]
[1764777081183,3.2078,3083.5,3083.4,3.3838]
[1764777081379,3.2078,3083.8,3083.7,1.8134]
[1764777081686,0.00486137,3083.9,3083.7,3.3838]
[1764777081884,0.00486137,3083.9,3083.8,3.3838]
[1764777082389,0.00486137,3083.9,3083.8,5.12843804]
[1764777083490,0.00486137,3083.9,3083.8,3.3838]
[1764777084291,0.00486137,3083.9,3083.8,3.54589]
[1764777085085,0.00486137,3083.9,3083.8,5.28883332]
[1764777086384,3.2078,3085.1,3084.6,3.3838]
[1764777086692,1.6443,3085.0,3084.9,3.3838]
[1764777086996,3.4074,3085.0,3084.9,3.3838]
[1764777087495,3.41120104,3085.0,3084.9,3.3838]
[1764777088297,1.64810104,3085.0,3084.9,3.3838]
[1764777089695,3.41120104,3085.0,3084.9,1.5704]
[1764777089894,3.41120104,3085.0,3084.9,3.3838]
[1764777090596,0.00380104,3085.0,3084.9,3.3838]
[1764777090893,3.41120104,3085.0,3084.9,3.3838]
[1764777091082,3.41120104,3085.0,3084.9,1.5704]
[1764777091285,3.41120104,3085.0,3084.9,3.3838]
[1764777091688,1.64810104,3085.0,3084.9,3.3838]
[1764777092889,0.00380104,3085.0,3084.9,3.3838]
[1764777095498,3.0804,3084.7,3084.6,3.08796137]
[1764777095791,2.39660104,3085.0,3084.9,1.4332]
[1764777095996,3.08420104,3085.0,3084.9,3.0831]
[1764777096598,3.08420104,3085.0,3084.6,0.00486137]
[1764777096990,3.0804,3084.7,3084.6,1.43806137]
[1764777097289,0.87320104,3085.0,3084.9,3.0831]
[1764777097290,3.08420104,3085.0,3084.9,3.0831]
[1764777098087,1.5234,3084.7,3084.6,3.08796137]
[1764777098685,3.0804,3084.7,3084.6,0.00486137]
[1764777099496,3.0804,3084.7,3084.6,1.43806137]
[1764777100597,3.0804,3084.7,3084.6,0.00486137]
[1764777100800,6.2882,3084.7,3084.6,0.00486137]
[1764777101199,6.2882,3084.7,3084.6,1.43806137]
[1764777101403,6.2882,3084.7,3084.6,0.00486137]
[1764777102402,6.2882,3084.7,3084.6,3.08796137]
[1764777103299,6.2882,3084.7,3084.6,0.00486137]
[1764777104198,6.2882,3084.7,3084.6,1.35836137]
[1764777104403,0.00380104,3085.0,3084.9,2.756]
[1764777104596,0.00380104,3085.0,3084.9,5.9638]
[1764777104901,4.5508,3085.6,3085.5,2.756]
[1764777105105,6.0223,3085.6,3085.5,2.756]
[1764777105603,4.2028,3086.0,3085.5,3.5729]
[1764777105998,1.343,3085.6,3085.5,3.57528117]
[1764777106397,1.343,3085.6,3085.5,2.75838117]
[1764777106701,4.20544067,3086.0,3085.5,3.57528117]
[1764777107199,3.21044067,3086.0,3085.9,2.756]
[1764777107595,6.02494067,3086.0,3085.5,0.98128117]
[1764777108201,6.02494067,3086.0,3085.9,1.3535]
[1764777108605,0.00264067,3086.0,3085.9,2.756]
[1764777109006,3.2078,3086.5,3086.4,2.756]
[1764777109204,4.5508,3086.5,3086.4,2.756]
[1764777109801,6.0223,3086.5,3086.4,2.756]
[1764777110000,6.02639449,3086.5,3086.4,2.756]
[1764777110304,6.02639449,3086.5,3086.4,1.3535]
[1764777113505,6.02639449,3086.5,3086.4,2.756]
[1764777113805,0.00486137,3086.8,3086.7,2.756]
[1764777114602,0.00730414,3086.8,3086.7,2.756]
[1764777116309,1.35030414,3086.8,3086.7,2.756]
[1764777116507,1.35030414,3086.8,3086.7,2.91793]
[1764777116508,0.00730414,3086.8,3086.7,2.91793]
[1764777116714,43.76040208,3088.0,3087.6,2.756]
[1764777116715,4.5508,3087.7,3087.6,2.756]
[1764777117207,3.2078,3087.7,3087.6,2.756]
[1764777117511,2.8145,3088.0,3087.9,1.3535]
[1764777117706,2.81701471,3088.0,3087.9,0.00390239]
[1764777117912,3.62091471,3088.0,3087.9,0.00390239]
[1764777118212,5.61554679,3088.0,3087.9,0.00390239]
[1764777118508,2.8145,3087.2,3087.1,4.5613]
[1764777118704,2.8145,3087.2,3087.1,3.2078]
[1764777118910,2.8145,3087.2,3086.6,3.2078]
[1764777119111,1.343,3086.7,3086.6,5.9638]
[1764777119411,1.343,3086.7,3086.6,5.96681728]
[1764777119614,2.8145,3086.7,3086.6,4.56431728]
[1764777119907,2.8145,3086.7,3086.6,1.35651728]
[1764777120306,2.8145,3086.7,3086.6,0.00301728]
[1764777120506,2.8145,3086.7,3086.6,1.35651728]
[1764777121009,2.8145,3086.7,3086.6,0.00301728]
[1764777121399,3.2078,3086.8,3086.4,2.76086137]
[1764777121604,6.0223,3086.8,3086.7,1.3535]
[1764777121806,1.4715,3086.5,3086.4,1.35836137]
[1764777122006,2.8145,3086.5,3086.4,1.35836137]
[1764777122305,2.8145,3086.5,3086.4,2.76086137]
[1764777122505,6.0223,3086.8,3086.7,1.3535]
[1764777123110,1.343,3086.5,3086.4,2.75362359]
[1764777123808,3.4563,3086.5,3086.4,0.00882359]
[1764777124205,3.4563,3086.5,3085.7,3.2078]
[1764777124206,2.6923,3085.8,3085.7,3.2078]
[1764777124413,2.6923,3085.8,3085.7,4.5167]
[1764777125212,2.69557221,3085.8,3085.7,4.52077591]
[1764777125404,2.69557221,3085.8,3085.7,3.21187591]
[1764777125801,5.90337221,3085.8,3085.7,0.00407591]
[1764777127408,2.6923,3084.7,3084.6,0.26471164]
[1764777127611,1.2499,3084.0,3083.9,4.5167]
[1764777127908,1.2499,3084.0,3083.9,2.7002]
[1764777128113,0.8039,3084.5,3083.9,2.7002]
[1764777128412,1.2499,3084.0,3083.9,2.70895462]
[1764777128714,2.6923,3084.0,3083.9,1.31765462]
[1764777129013,3.3632,3084.0,3083.9,0.00875462]
[1764777129608,2.6923,3084.0,3083.9,1.31765462]
[1764777129816,3.2078,3084.3,3083.9,2.70895462]
[1764777130315,1.2499,3084.0,3083.9,2.70895462]
[1764777130712,3.2078,3084.3,3083.9,2.70895462]
[1764777131011,1.2499,3084.0,3083.9,2.70895462]
[1764777131217,2.6923,3084.0,3083.9,1.31765462]
[1764777131712,2.6923,3084.0,3083.9,0.00875462]
[1764777131713,3.3325,3084.0,3083.9,0.00875462]
[1764777131914,2.6923,3083.6,3083.1,3.2078]
[1764777132710,1.2499,3083.2,3083.1,4.5167]
[1764777133012,2.69607423,3083.2,3083.1,3.21112723]
[1764777133211,1.25367423,3083.2,3083.1,5.91132723]
[1764777133511,2.15670208,3084.1,3083.1,5.91132723]
[1764777133512,1.25476137,3084.5,3084.4,2.7002]
[1764777133717,0.00486137,3084.5,3084.4,2.7002]
[1764777134112,1.2499,3084.1,3084.0,2.7002]
[1764777134317,0.00486137,3084.5,3084.4,2.7002]
[1764777134618,0.00751117,3084.5,3084.4,2.7002]
[1764777139419,2.6923,3084.4,3084.3,3.2078]
[1764777139618,1.2499,3084.4,3084.3,2.7002]
[1764777140023,0.00751117,3084.5,3084.4,2.7002]
[1764777142927,0.00751117,3084.5,3084.4,2.86226]
[1764777143226,1.117e-05,3084.5,3084.4,2.86226]
[1764777143430,3.2078,3085.3,3085.2,2.7002]
[1764777144025,4.4577,3085.3,3085.2,2.7002]
[1764777144225,3.2078,3085.3,3085.2,2.7002]
[1764777144425,3.21145128,3085.3,3085.2,2.7002]
[1764777144821,4.46135128,3085.3,3085.2,2.7002]
[1764777145327,5.90375128,3085.3,3085.2,1.3089]
[1764777146222,2.6923,3085.1,3085.0,2.7002]
[1764777146425,2.6923,3085.1,3085.0,1.3089]
[1764777146726,3.21145128,3085.3,3084.9,0.00486137]
[1764777146727,3.5181,3085.0,3084.9,0.00486137]
[1764777148825,2.6923,3085.0,3084.9,1.31376137]
[1764777149031,3.21145128,3085.3,3084.9,2.70506137]
[1764777149333,1.2499,3085.0,3084.9,2.70506137]
[1764777150128,0.00365128,3085.3,3085.2,2.86221]
[1764777150331,4.4577,3086.1,3086.0,2.7002]
[1764777150632,0.5822,3086.0,3085.5,2.7002]
[1764777151028,1.2499,3086.0,3085.9,2.7002]
[1764777151226,3.2078,3086.1,3086.0,3.4771]
[1764777151630,3.2100959,3086.1,3086.0,3.4771]
[1764777152434,0.0022959,3086.1,3086.0,3.4771]
[1764777152632,0.0022959,3086.1,3086.0,6.6849]
[1764777152935,0.00486137,3086.3,3086.2,2.7002]
[1764777154038,0.00772205,3086.3,3086.2,2.7002]
[1764777155031,3.2078,3086.9,3086.2,2.7002]
[1764777155237,3.2078,3087.3,3087.2,2.5505]
[1764777155737,5.7481,3087.3,3087.2,2.5505]
[1764777155939,4.4562,3087.3,3087.2,2.5505]
[1764777156133,4.45925536,3087.3,3087.2,2.5505]
[1764777156338,3.21085536,3087.3,3087.2,2.5505]
[1764777156639,4.45925536,3087.3,3087.2,2.5505]
[1764777157136,1.2484,3087.1,3087.0,1.2008]
[1764777157341,2.5403,3087.1,3087.0,1.2008]
[1764777157836,1.2484,3087.1,3087.0,2.4764]
[1764777158435,4.45915536,3087.3,3087.2,1.2398]
[1764777158632,5.61815536,3087.3,3086.9,0.00486137]
[1764777159033,1.25135536,3087.3,3087.2,2.5154]
[1764777159339,0.00305536,3087.3,3087.2,2.5154]
[1764777160333,1.25135536,3087.3,3087.2,2.5154]
[1764777161136,0.00305536,3087.3,3087.2,5.7232]
[1764777161439,1.74199023,3089.2,3087.2,5.7232]
[1764777161440,4.0336,3088.5,3087.5,3.43789]
[1764777161637,4.0336,3088.5,3087.7,3.2078]
[1764777162234,4.03746989,3088.5,3087.7,3.2078]
[1764777162431,1.2483,3087.8,3087.7,1.2398]
[1764777162631,0.00486137,3088.4,3087.7,2.5154]
[1764777162929,0.00486137,3088.4,3087.7,5.7232]
[1764777163133,0.00486137,3088.4,3088.3,2.5154]
[1764777163339,0.00486137,3088.4,3088.3,2.51834586]
[1764777163736,0.00486137,3088.4,3088.3,5.88799586]
[1764777163941,2.28645692,3090.7,3088.3,5.88799586]
[1764777163942,4.4561,3089.3,3089.2,2.5154]
[1764777164129,3.2078,3089.3,3089.2,2.5154]
[1764777164332,4.4561,3089.3,3089.2,2.5154]
[1764777164738,5.6151,3089.3,3088.6,0.16183]
[1764777164939,5.62200325,3089.3,3088.6,0.00486137]
[1764777165539,2.4073,3088.7,3088.6,0.00486137]
[1764777165734,4.40193208,3088.7,3088.6,0.00486137]
[1764777166739,2.4073,3088.7,3088.6,0.00486137]
[1764777167437,2.4073,3088.7,3087.9,3.2078]
[1764777167438,1.2483,3088.0,3087.9,3.2078]
[1764777168037,1.2483,3088.0,3087.9,4.4476]
[1764777168741,3.9504,3088.5,3087.9,5.72621094]
[1764777169340,2.4073,3088.0,3087.9,3.21081094]
[1764777170433,3.1499,3088.0,3087.9,0.00301094]
[1764777172342,2.4073,3087.7,3087.6,0.00486137]
[1764777173140,2.4073,3086.9,3086.8,3.2078]
[1764777173343,0.00343015,3086.9,3086.8,2.51902017]
[1764777173646,0.00343015,3086.9,3086.8,5.72682017]
[1764777175340,0.00343015,3086.9,3086.8,2.51902017]
[1764777175846,2.41073015,3086.9,3086.8,0.00362017]
[1764777176546,1.25173015,3086.9,3086.8,2.51902017]
[1764777176741,0.00343015,3086.9,3086.8,2.51902017]
[1764777179946,1.25173015,3086.9,3086.8,2.51902017]
[1764777180245,0.00343015,3086.9,3086.8,5.72682017]
[1764777181843,0.00486137,3087.2,3087.1,2.5154]
[1764777182744,0.00879141,3087.2,3087.1,2.5154]
[1764777183046,3.2078,3087.9,3087.8,2.5154]
[1764777183247,5.727,3087.9,3087.8,1.2398]
[1764777183454,5.727,3087.9,3087.5,0.7606]
[1764777183849,1.122,3087.6,3087.5,1.0655]
[1764777184045,1.122,3087.6,3087.5,2.2808]
[1764777184350,1.122,3087.5,3087.4,1.0655]
[1764777184645,1.122,3087.5,3087.4,4.2733]
[1764777184852,3.21105861,3087.9,3087.4,5.4886]
[1764777187254,0.00325861,3087.9,3087.8,5.4886]
[1764777187752,2.39615861,3087.9,3087.3,3.2078]
[1764777189556,2.3929,3087.4,3087.3,4.2733]
[1764777190356,1.122,3087.4,3087.3,5.4886]
[1764777191753,2.3929,3087.4,3087.3,4.2733]
[1764777191953,3.2078,3087.8,3086.9,3.2078]
[1764777191954,2.3929,3087.0,3086.9,3.2078]
[1764777192254,0.6661,3087.5,3086.9,5.4886]
[1764777192466,1.122,3087.5,3087.4,2.2808]
[1764777192961,2.3929,3087.5,3087.4,1.0655]
[1764777193161,2.3929,3087.5,3087.0,0.6335]
[1764777193761,3.2078,3087.8,3087.4,2.2808]
[1764777193964,1.122,3087.5,3087.4,2.2808]
[1764777194160,2.3929,3087.5,3087.4,1.0655]
[1764777194366,2.3929,3087.5,3087.0,0.6335]
[1764777195163,3.2078,3087.8,3087.7,2.2808]
[1764777195359,0.00325861,3087.9,3087.8,2.2808]
[1764777195765,0.00325861,3087.9,3087.8,5.4886]
[1764777196360,3.2078,3088.6,3088.5,2.6499]
[1764777196862,3.9504,3089.0,3088.5,2.6499]
[1764777197060,1.122,3088.9,3088.8,1.0655]
[1764777197262,2.3929,3088.9,3088.5,0.3691]
[1764777197463,1.122,3088.6,3088.5,1.0655]
[1764777198165,2.3929,3088.6,3088.5,1.0655]
[1764777198564,2.8997,3088.5,3088.4,0.00486137]
[1764777199266,2.3929,3088.5,3088.4,1.07036137]
[1764777199567,2.3929,3088.5,3088.4,0.00486137]
[1764777200969,2.8997,3088.5,3088.4,0.00486137]
[1764777201463,2.39577565,3088.9,3088.8,1.0655]
[1764777201763,1.122,3088.6,3088.5,2.9143]
[1764777202066,0.00287565,3088.9,3088.4,0.00486137]
[1764777202067,2.3929,3088.5,3088.4,0.00486137]
[1764777202769,2.3929,3088.5,3088.4,2.28566137]
[1764777203069,2.3929,3088.5,3088.4,1.07036137]
[1764777203466,2.3929,3088.5,3088.4,0.00486137]
[1764777203671,2.8997,3088.5,3088.4,0.00486137]
[1764777205463,2.3929,3087.9,3087.4,3.2078]
[1764777205664,1.00011389,3088.5,3087.4,3.2078]
[1764777205665,1.122,3087.6,3087.5,2.9143]
[1764777206668,2.3929,3087.5,3087.4,4.2733]
[1764777206974,0.6661,3088.0,3087.4,5.4886]
[1764777207669,1.122,3087.5,3087.4,5.4886]
[1764777208062,0.6661,3088.0,3087.4,5.4886]
[1764777208264,1.122,3087.5,3087.4,5.4886]
[1764777208570,0.6661,3088.0,3087.4,5.4886]
[1764777209181,3.2078,3087.9,3087.4,5.4886]
[1764777210161,2.3929,3087.5,3087.4,5.4886]
[1764777210369,2.3929,3087.5,3087.4,1.0655]
[1764777210370,3.059,3087.5,3087.4,1.0655]
[1764777210767,2.3929,3087.3,3087.2,0.00486137]
[1764777214471,2.3929,3087.3,3086.1,1.0053]
[1764777214472,2.0915,3086.2,3086.1,1.0053]
[1764777214672,1.0205,3086.6,3086.5,2.1185]
[1764777214865,2.0915,3086.6,3086.1,3.2078]
[1764777215272,2.0915,3085.8,3085.7,1.0053]
[1764777215572,2.09454301,3085.8,3085.7,0.00348482]
[1764777215779,5.30234301,3085.8,3085.7,0.00348482]
[1764777216675,2.0915,3085.1,3085.0,3.2078]
[1764777216977,2.0915,3085.1,3084.5,0.6292]
[1764777217570,2.0915,3085.1,3084.5,0.63182084]
[1764777217775,2.0915,3085.1,3084.5,0.63668221]
[1764777218583,1.9895,3084.6,3084.5,0.00748221]
[1764777218785,1.9895,3084.6,3084.5,1.04438221]
[1764777219074,0.6108,3085.0,3084.5,1.04438221]
[1764777219075,0.6108,3085.0,3084.5,2.68258221]
[1764777219269,0.9675,3084.6,3084.5,2.07128221]
[1764777219873,0.6108,3085.0,3084.5,2.07128221]
[1764777220284,1.9895,3084.6,3084.5,0.00748221]
[1764777221584,5.1973,3084.9,3084.5,0.61878221]
[1764777222288,0.9675,3084.6,3084.5,2.68258221]
[1764777222580,1.9895,3084.6,3084.5,1.04438221]
[1764777222784,4.1753,3084.9,3084.8,2.0638]
[1764777223086,3.2078,3085.3,3084.8,2.0638]
[1764777223285,4.1753,3085.3,3085.2,2.0638]
[1764777224382,5.1973,3085.3,3085.2,1.0369]
[1764777224580,3.2078,3085.7,3085.2,5.2716]
[1764777224789,0.97054301,3085.8,3085.7,2.0638]
[1764777225173,1.9895,3085.3,3085.2,4.2447]
[1764777225377,0.9675,3085.3,3085.2,5.2716]
[1764777225577,1.9895,3085.3,3085.2,4.2447]
[1764777225781,1.9895,3085.3,3085.2,3.2078]
[1764777226784,1.9895,3085.3,3084.8,3.2078]
[1764777228089,1.9895,3085.3,3085.2,1.0369]
[1764777228288,0.9675,3085.3,3085.2,2.0638]
[1764777228489,0.00304301,3085.8,3085.5,2.6751]